Cogmind - Beta 13 @@@ ROGUE MODE // 2024.04.13 @ 09:47:19 Player: MO-55 Result: Destroyed by ZC-NRU(R) with Subdweller Beam Cannon Performance ------------- Evolutions (0) 0 Regions Visited (2) 400 Robots Destroyed (17) 85 Value Destroyed (518) 518 Prototype IDs (0) 0 Alien Tech Used (0) 0 Bonus (0) 0 TOTAL SCORE: 1003 Bonus ------- None Cogmind --------- Core Integrity 0/250 Matter 0/300 Energy 100/100 System Corruption 0% Temperature Cool (9) Movement Core (1500) Ox29 Location -10/Subcaves Parts ------- > --- POWER (1) -------- Subdweller Power Source > --- PROPULSION (2) --- (None) > --- UTILITY (2) ------ Huge Storage Unit > --- WEAPON (2) ------- Battle Rifle Battle Rifle > --- INVENTORY (25) --- Light Ion Engine Light Ion Engine Subdweller Power Source Makeshift Flight Unit Subdweller Optics Improved Terrain Scanner Makeshift Thermal Plating Battle Rifle Battle Rifle Subdweller Shrapnel Launcher Scrap Shield Fragment (49) Peak State ------------ > --- POWER ------------ Subdweller Power Source > --- PROPULSION ------- Subdweller Monowheel Subdweller Monowheel > --- UTILITY ---------- Huge Storage Unit Improved Terrain Scanner > --- WEAPON ----------- Battle Rifle Flamer > --- INVENTORY -------- Light Ion Engine Light Ion Engine Aluminum Leg Subdweller Optics Battle Rifle Subdweller Shrapnel Launcher Scrap Shield Fragment [Rating: 15] Favorites ----------- Power Subdweller Power Source Engine Subdweller Power Source Propulsion Subdweller Monowheel Treads Light Treads Leg Aluminum Leg Wheel Subdweller Monowheel Utility Huge Storage Unit Device Improved Terrain Scanner Storage Huge Storage Unit Processor Targeting Computer Weapon Battle Rifle Energy Gun Medium Laser Ballistic Gun Battle Rifle Launcher Subdweller Shrapnel Launcher Special Weapon Flamer Build | -11 -10 -10 ------- Run | Yrd Mat Sub Slots Evolved . | . . . Power . | . . . Propulsion . | . . . Utility . | . . . Weapon . | . . . Parts Attached 35 | 7 5 23 Power 5 | 1 . 4 Engine 5 | 1 . 4 Core . | . . . Reactor . | . . . Propulsion 13 | 2 2 9 Treads 2 | . . 2 Leg 5 | 2 . 3 Wheel 6 | . 2 4 Hover . | . . . Flight . | . . . Utility 6 | 1 3 2 Device 2 | . 1 1 Storage 3 | 1 2 . Processor 1 | . . 1 Hackware . | . . . Protection . | . . . Artifact . | . . . Weapon 11 | 3 . 8 Energy Gun 1 | 1 . . Energy Cannon . | . . . Ballistic Gun 7 | 2 . 5 Ballistic Cannon . | . . . Launcher 2 | . . 2 Special Weapon 1 | . . 1 Impact Weapon . | . . . Slashing Weapon . | . . . Piercing Weapon . | . . . Special Melee Weapon . | . . . Unidentified Prototypes . | . . . Parts Lost 13 | . . 13 Power 2 | . . 2 Propulsion 7 | . . 7 Utility 1 | . . 1 Weapon 3 | . . 3 Highest Loss Streak 3 | . . 3 To Critical Strikes . | . . . Average Slot Usage (%) 94 | . 100 93 Engine 13 | . 14 13 Treads 3 | . . 4 Leg 5 | . 7 5 Wheel 16 | . 21 15 Device 11 | . 14 11 Storage 14 | . 14 14 Energy Gun 4 | . 14 2 Ballistic Gun 14 | . 14 14 Special Weapon 7 | . . 8 Naked Turns . | . . . Heaviest Build 95 | 14 90 95 Greatest Support 40 | 20 20 40 Greatest Overweight (x) 29 | 3 4 29 Average Overweight (x) 3 | . 2 4 Largest Inventory Capacity 25 | 8 25 25 Average Capacity 23 | 7 21 25 Most Carried 12 | 7 8 12 Average Carried 7 | 3 6 7 Final Capacity 25 | 8 25 25 Final Carried 11 | 7 7 11 Class Distribution -------------------- 74% | Mutant 25% | Scavenger-Mutant Dominant Class ---------------- Mutant | -10/Materials Mutant | -10/Subcaves Resources | -11 -10 -10 ----------- Run | Yrd Mat Sub Matter Collected 674 | 236 56 382 Remotely . | . . . Salvage Created 530 | 41 71 418 Parts 34 | 7 6 21 Haulers Intercepted . | . . . Recyclers Shooed 1 | 1 . . Parts Field Recycled . | . . . Retrieved Matter . | . . . Parts Self-Destructed 8 | . . 8 Prevented . | . . . Kills | -11 -10 -10 ------- Run | Yrd Mat Sub Combat Hostiles Destroyed 15 | . 4 11 Guns 10 | . 4 6 Cannons 1 | . . 1 AOE 4 | . . 4 Classes Destroyed 4 | 1 2 1 Tunneler 2 | 2 . . Swarmer 3 | . 3 . Grunt 1 | . 1 . Subdweller 11 | . . 11 Best Kill Streak 4 | 2 3 4 Combat Bots Only 4 | . 3 4 Max Kills in Single Turn 2 | 2 1 1 Gunslinging . | . . . Exploded 1 | . . 1 Melee . | . . . Uniques/NPCs Destroyed . | . . . Combat | -11 -10 -10 -------- Run | Yrd Mat Sub Hostile Shots Fired 87 | . 11 76 Missed 19 | . 3 16 Damage Taken 1532 | . 68 1464 Core 258 | . 7 251 Absorbed by Shields . | . . . Core Remaining (%) 100 | 100 . . Volleys Fired 83 | 3 6 74 Largest 2 | 2 2 2 Hottest 125 | 70 70 125 Shots Fired 126 | 6 12 108 Gun 110 | 6 12 92 Cannon . | . . . Launcher 14 | . . 14 Special 2 | . . 2 Kinetic 103 | 3 6 94 Thermal 23 | 3 6 14 Explosive . | . . . Electromagnetic . | . . . Robot Hit Streak 18 | 2 7 18 Robot Miss Streak 1 | 1 1 1 Penetration Max . | . . . Secondary Targets . | . . . Shots Hit Robots 77 | 3 7 67 Core Hits 32 | 2 5 25 Critical Kills . | . . . Critical Parts Destroyed . | . . . Critical Strikes 4 | . 2 2 Burn 4 | . 2 2 Melee Attacks . | . . . Impact . | . . . Slashing . | . . . Piercing . | . . . Sneak Attacks . | . . . Combat Hostiles . | . . . Follow-up Attacks . | . . . Damage Inflicted 1375 | 50 91 1234 Guns 780 | 50 91 639 Cannons . | . . . Explosions 583 | . . 583 Melee . | . . . Ramming . | . . . Kinetic 1162 | 38 14 1110 Thermal 213 | 12 77 124 Explosive . | . . . Electromagnetic . | . . . Impact . | . . . Slashing . | . . . Piercing . | . . . Highest Corruption . | . . . Average Corruption . | . . . Corruption Purged . | . . . Corruption Blocked . | . . . Overload Shots . | . . . Overflow Damage 7 | . . 7 Projectiles . | . . . Explosions 7 | . . 7 Melee . | . . . Knockbacks . | . . . Impact . | . . . Kinetic . | . . . Secondary . | . . . Self-Inflicted Damage 48 | . . 48 Shots 4 | . . 4 Rammed . | . . . Targets Rammed . | . . . Kicked . | . . . Crushed . | . . . Highest Temperature 36 | 18 36 . Average Temperature 16 | 9 19 . Received Heat Transfer 291 | . 12 279 Siege Activations . | . . . Robots Corrupted . | . . . Combat Hostiles . | . . . Parts Fried . | . . . Impact Corruptions . | . . . Robots Melted . | . . . Combat Hostiles . | . . . Parts Melted 8 | . 2 6 Heat Transferred 1054 | 37 370 647 Parts Sabotaged . | . . . Parts Stolen . | . . . Parts Stripped . | . . . Power Chain Reactions . | . . . Alert | -11 -10 -10 ------- Run | Yrd Mat Sub Peak Influence 182 | 10 182 . Initial 6 | . 6 . Average 82 | 2 97 . Maximum Alert Level . | . . . Low Security (%) 100 | 100 100 . Level 1 . | . . . Level 2 . | . . . Level 3 . | . . . Level 4 . | . . . Level 5 . | . . . High Security . | . . . Max Security . | . . . Squads Dispatched 2 | . 2 . Investigation 1 | . 1 . Extermination . | . . . Reinforcement 1 | . 1 . Assault . | . . . Garrison . | . . . Intercept . | . . . Searches Triggered . | . . . Construction Impeded . | . . . Haulers Reinforced . | . . . Active Scanning Responses . | . . . Cargo Convoy Interrupts . | . . . Stealth | -11 -10 -10 --------- Run | Yrd Mat Sub Distress Signals 1 | . 1 . Communications Jammed . | . . . Distress Signals . | . . . Times Spotted 20 | . 7 13 Peak Tracking Total 4 | . 4 2 Tactical Retreats 1 | . 1 . Traps | -11 -10 -10 ------- Run | Yrd Mat Sub Traps Triggered 2 | . 1 1 Indirectly . | . . . Trap Hack Attempts . | . . . Triggered . | . . . Disarmed . | . . . Reprogrammed . | . . . Reused . | . . . Traps Extracted . | . . . Installed . | . . . Triggered . | . . . Machines | -11 -10 -10 ---------- Run | Yrd Mat Sub Machines Disabled . | . . . Max in Single Turn . | . . . Machines Repaired . | . . . Machines Dismantled . | . . . Machines Sabotaged . | . . . Overloaded Fab Kills . | . . . Hacking | -11 -10 -10 --------- Run | Yrd Mat Sub Machines Accessed 1 | . 1 . Terminals 1 | . 1 . Fabricators . | . . . Repair Stations . | . . . Recycling Units . | . . . Scanalyzers . | . . . Garrison Access . | . . . Total Hacks 2 | . 2 . Successful 1 | . 1 . Failed 1 | . 1 . Catastrophic . | . . . Database Lockouts . | . . . Manual 2 | . 2 . Terminals 2 | . 2 . Fabricators . | . . . Repair Stations . | . . . Recycling Units . | . . . Scanalyzers . | . . . Garrison Access . | . . . Terminal Hacks . | . . . Fabricator Hacks . | . . . Repair Station Hacks . | . . . Recycling Unit Hacks . | . . . Scanalyzer . | . . . Garrison Access Hacks . | . . . Unauthorized Hacks 1 | . 1 . Terminals 1 | . 1 . Botnet 1 | . 1 . Fabricators . | . . . Repair Stations . | . . . Recycling Units . | . . . Scanalyzers . | . . . Garrison Access . | . . . Data Cores Recovered . | . . . Used . | . . . Hacking Detections 1 | . 1 . Full Trace Events . | . . . Feedback Events . | . . . Feedback Blocked . | . . . Robot Schematics Acquired . | . . . Robots Built . | . . . Authchips . | . . . Time . | . . . Total Robot Build Rating . | . . . Part Schematics Acquired . | . . . Parts Built . | . . . Authchips . | . . . Time . | . . . Total Part Build Rating . | . . . Parts Repaired . | . . . Time . | . . . Parts Recycled . | . . . Recycled Matter . | . . . Retrieved Matter . | . . . Retrieved Components . | . . . Parts Scanalyzed . | . . . Part Schematics Acquired . | . . . Parts Damaged . | . . . Bothacking | -11 -10 -10 ------------ Run | Yrd Mat Sub Used RIF Installer . | . . . Robots Hacked . | . . . Non-combat . | . . . Combat . | . . . Robot Hacks Applied . | . . . Relay Couplers Released . | . . . Fabnet Peak Effective % . | . . . Robots Rewired . | . . . Allies Hacked . | . . . Hacks Repelled . | . . . Allies | -11 -10 -10 -------- Run | Yrd Mat Sub Total Allies . | . . . Largest Group . | . . . Highest-Rated Group . | . . . Highest-Rated Ally . | . . . Total Orders . | . . . Ally Attacks . | . . . Total Damage . | . . . Kills . | . . . Allies Corrupted . | . . . Allies Melted . | . . . Intel | -11 -10 -10 ------- Run | Yrd Mat Sub Robot Analysis Total . | . . . Derelict Logs Recovered . | . . . Drone Launches . | . . . Drone Recoveries . | . . . Exploration | -11 -10 -10 ------------- Run | Yrd Mat Sub Turns Passed 2826 | 81 439 2306 Spaces Moved 961 | 45 127 789 Core 18 | 5 . 13 Treads 65 | . . 65 Legs 97 | 40 56 1 Wheels 781 | . 71 710 Hover . | . . . Flight . | . . . Fastest Speed 50 | 50 120 130 Average Speed 175 | 123 131 185 Slowest Speed 1500 | 200 140 1500 Overloaded Moves . | . . . Propulsion Burnouts . | . . . Robots Hopped . | . . . Cave-ins Triggered . | . . . Exploration Rate (%) 19 | 4 19 34 Regions Visited 2 Branch Regions 1 Pre-discovered Areas 1 | . . 1 Known Exits Taken . | . . . Unknown Exits Taken 2 | 1 1 . Scrap Searched . | . . . Spaces Dug 13 | . . 13 Terrain Destroyed 110 | . . 110 Melee . | . . . Projectile . | . . . AOE 110 | . . 110 Terrain Rammed . | . . . Walls Destroyed . | . . . Machines Disabled . | . . . Actions | -11 -10 -10 --------- Run | Yrd Mat Sub Total 1973 | 61 386 1526 Wait 872 | . 246 626 Move 959 | 44 126 789 Hop . | . . . Pick Up 14 | 6 1 7 Fast Attach 13 | 7 . 6 Attach 11 | . 1 10 Detach 6 | 1 . 5 Swap 11 | . 4 7 Drop 4 | . 2 2 Fire 83 | 3 6 74 Melee . | . . . Ram . | . . . Kick . | . . . Crush . | . . . Escape Stasis . | . . . Rewire . | . . . Trap . | . . . Miscellaneous . | . . . Route ------- -11/Scrapyard -10/Materials -10/Subcaves (discovered 1 exit: [*Mat]) History --------- Turn | Location | Event 33 | -11/Scrapyard | Discovered new exit (range 16) 82 | -11/Scrapyard | Entered Materials 129 | -10/Materials | Discovered new exit (range 12) 311 | -10/Materials | Build established: Mutant 521 | -10/Materials | Entered Subcaves 1028 | -10/Subcaves | Discovered new exit (range 14) 1083 | -10/Subcaves | Core integrity fell below 50% 1113 | -10/Subcaves | Lost 3 parts (2n1u) 1136 | -10/Subcaves | Ambushed by Subdweller buried in earth 1137 | -10/Subcaves | Ambushed by Subdweller buried in earth 1168 | -10/Subcaves | Ambushed by Subdweller buried in earth 1412 | -10/Subcaves | Ambushed by Subdweller buried in earth 1744 | -10/Subcaves | Build established: Scavenger-Mutant 2378 | -10/Subcaves | Build established: Mutant 2432 | -10/Subcaves | Shifting Twisted Machinery released Sub. Power Source 2433 | -10/Subcaves | Shifting Twisted Machinery released Mak. Flight Unit 2608 | -10/Subcaves | Learned location of Zion (-6) 2608 | -10/Subcaves | Met a Zionite searching for "candidates" 2818 | -10/Subcaves | Core integrity fell below 20% 2827 | -10/Subcaves | Destroyed by ZC-NRU(R) with Subdweller Beam Cannon Last Messages --------------- 02538_ Sub. Power Source shoots sparks and powers down. 02562_ 3G-LV1(z): "She is not going to be happy we haven't found any suitable candidates yet." 02564_ Acquired 5 matter. 02565_ A thin wall crumbles away, revealing a door. 02608_ 3G-LV1(z): "Hey you! It's really dangerous down here, I feel that you could die at any moment. For your health and safety might I suggest a trip to Zion?" World map updated: -6/Zion. 02758_ Acquired Battle Rifle. 02807_ SX-YJL(R) suffers critical hit (Burn). 02807_ Disposable Heat Sink melted. 02807_ SX-YJL(R) destroyed. 02810_ Sub. Monowheel destroyed. 02815_ Flamer destroyed. 02822_ Subatomizers dissect the Sub. Laser. 02823_ Aluminum Leg destroyed. Map ----- +----------------------------------------------------+ | ??###???# ########## #??# ###?????????????? | | ????????# ####????## #?# #?##?#??????????? | | ????????## ##???### #?## ##?????#?????????? | | ####???###### ##########?## ####?????????????? | | #???## ##?#& ##??### #??????????????? | | #????#"""### ! #" " ###### ##?????????????? | | ????###"""## " ####"" ## ### ##?????????????? | | ????# " " #??#""" #??????????????? | | ???##""" # "" #?##"" #???#???#?#????? | | ??## "" ######### " # ##????????#?????? | | ??# " " ##?????# ## #####???#??????????? | | ?### * #???### ######??##?????????????? | | ???## #????## ###????????????????????? | | ????# ##????# ###???#??????#?#?????? | | ???## ##?#???# ##?????#???#????????? | | ????## " #?????## % ## ##?????#?#?????????? | | #???# " ##??#???## #### ####??????????????? | | ##### #????????# ##?## #??????????????? | | ## # ##??????## ##?## ##???#?????#???? | | ## ##????## ###?# ###??????????????? | | ## ###### #???# #????????????#???? | | ### #???# ###?#??????????????? | | ## ##?## ##???????#?????????? | | # ### ## ### ###???????????????? | | # ## #### & ##?##???????????? | | ### # #?# @[%R #??????????????? | | #?# ### ?## ####= #???#???#??????? | | ##?# ######?## ###??## ##???#??#???????? | | ##??# ##???????### ##????# ##???#??????????? | | ##??## #?????????# ##???#### #???#??????????? | | #### ###??????## #???#?# ###??????????????? | | " " ####???# #?##### #????#???????????? | | """ #??## ##?# " #??#?????????????? | | ##" ##??# #### #????????????????? | | ##"" ####???# #?#&" ""#???????#????????? | | ?# "" ##??????## ## " #????????????????? | | ?# ##????????##### ###"" "##????????????????? | | ?## #####?????????????###?# ??????????????????? | | ??##??????????????????????# ??????????????????? | | ?????????????????????????? #???#?????????#????? | | ????????????????????????? #???????????????????? | | ????????????????????????? #????????????????????? | | ????????????????????????# ?#???????????????????? | | ???????????????????????? ????????????#????????? | | ????????????????????????? ???????????????????????? | | ?????????????????????????????????????????????????? | | ?????????????????????????????????? ??????????????? | | ?????????????????????????????????????????????????? | | ?????????????????????????????????????????????????? | | ?????????????????????????????????????????????????? | +----------------------------------------------------+ Best States ------------- Heat Dissipation 25 Energy Generation 15 Energy Capacity 250 Matter Stores 300 Matter Capacity 300 Sight Range 16 Terrain Scan Range 16 Terrain Scan Density 10 Evasion (%) 55 Targeting Accuracy 5 Recoil Reduction 2 Item Schematics ----------------- None Robot Schematics ------------------ None Fabricated ------------ Nothing Alien Tech Used ----------------- None Achievements -------------- None Challenges ------------ None Game ------ Seed CryofiberGravmagDissipator Manual? 0 Play Time 00:15:39 Cumulative 92.1 hours Start 2024.04.13 @ 09:34:26 End 2024.04.13 @ 09:47:19 Sessions 1 Manual Loads 0 Difficulty Rogue Special Mode None Game No. 79 Rogue 79 Adventurer 0 Explorer 0 Win Type - Total 2 Types 1/0/1/0/0/0/0/0/0 Lore% 44 Gallery% 58 Achievement% 48 Wizard Run 0 Options --------- Layout 2 ASCII 0 Keyboard 0 Movement Mouse Keybinds 0 Fullscreen 2 Font 32/SmallcapsGlow Map View 50x44 Zoom Use 0% Tactical HUD 1 Map Filters NONE Filters NONE Steam 1 RUN: 85b378a2-2688-43fc-9b39-91ac6bc8f1e9